[Event "Niedersachsen-ch A 2024"]
[Site "Verden Aller"]
[Date "2024.01.05"]
[Round "4.9"]
[White "Miljkovic, Jovana"]
[Black "Soellig, Martin"]
[Result "0-1"]
[ECO "E11"]
[WhiteElo "2035"]
[BlackElo "1892"]
[Annotator "ChessBase"]
[PlyCount "221"]
[EventDate "2024.01.01"]
[EventType "swiss"]
[EventCountry "GER"]
[SourceTitle "playchess.com"]
[Source "ChessBase"]
[SourceQuality "1"]
[TimeControl "40/5400+30:1800+30"]

1. Nf3 {[%emt 0:00:02]} e6 {[%emt 0:00:58]} 2. g3 {[%emt 0:00:19]} Nf6 {[%emt 0:00:20]} 3. c4 {[%emt 1:31:39]} d5 {[%emt 0:01:01]} 4. d4 {[%emt 0:00:30]} Bb4+ {[%emt 0:01:27]} 5. Bd2 {[%emt 0:00:00]} Bxd2+ {[%emt 0:00:16]} 6. Nbxd2 {[%emt 0:00:00]} O-O {[%emt 0:00:49]} 7. Bg2 {[%emt 0:00:00]} Nbd7 {[%emt 0:02:12]} 8. O-O {[%emt 0:00:00]} c6 {[%emt 0:00:30]} 9. Qc2 {[%emt 0:00:00]} Re8 {[%emt 0:00:00]} 10. e4 {[%emt 0:00:00]} Nxe4 {[%emt 0:00:00]} 11. Nxe4 {[%emt 0:00:00]} dxe4 {[%emt 0:01:30]} 12. Qxe4 {[%emt 0:00:00]} Qc7 {[%emt 0:00:00]} 13. Rfe1 {[%emt 0:00:00]} Nf6 {[%emt 0:00:00]} 14. Qh4 {[%emt 0:00:00]} b6 {[%emt 0:00:00]} 15. Ne5 {[%emt 0:00:00]} Bb7 {[%emt 0:00:00]} 16. Rad1 {[%emt 0:00:00]} Rad8 {[%emt 0:00:00]} 17. b4 {[%emt 0:00:00]} Nd7 {[%emt 0:00:00]} 18. Nd3 {[%emt 0:00:30]} Ba6 {[%emt 0:00:00]} 19. c5 {[%emt 0:00:00]} Bc4 {[%emt 0:00:00]} 20. a3 {[%emt 0:00:00]} b5 {[%emt 0:00:00]} 21. Nf4 {[%emt 0:00:00]} Nf8 {[%emt 0:00:00]} 22. Nh5 {[%emt 0:00:00]} Ng6 {[%emt 0:00:00]} 23. Qg5 {[%emt 0:00:00]} Bd5 {[%emt 0:00:00]} 24. Nf4 {[%emt 0:00:00]} Nxf4 {[%emt 0:00:00]} 25. Qxf4 {[%emt 0:00:00]} Qxf4 {[%emt 0:00:00]} 26. gxf4 {[%emt 0:00:00]} Bxg2 {[%emt 0:00:00]} 27. Kxg2 {[%emt 0:00:00]} Rd5 {[%emt 0:00:00]} 28. Rd3 {[%emt 0:00:00]} Red8 {[%emt 0:00:00]} 29. Red1 {[%emt 0:00:00]} g6 {[%emt 0:00:00]} 30. Kf3 {[%emt 0:00:00]} Kg7 {[%emt 0:03:00]} 31. h3 {[%emt 0:00:00]} Rh5 {[%emt 0:00:00]} 32. Ke2 {[%emt 0:00:00]} Rdd5 {[%emt 0:00:00]} 33. Rg1 {[%emt 0:00:00]} Kf6 {[%emt 0:04:30]} 34. Rgg3 {[%emt 0:00:00]} h6 {[%emt 0:00:00]} 35. Ke3 {[%emt 0:00:00]} Rh4 {[%emt 0:00:00]} 36. a4 {[%emt 0:00:00]} a6 {[%emt 0:00:00]} 37. axb5 {[%emt 0:00:00]} axb5 {[%emt 0:00:00]} 38. Ra3 {[%emt 0:00:00]} Rd7 {[%emt 0:00:00]} 39. Ra6 {[%emt 0:00:00]} Rc7 {[%emt 0:00:00]} 40. Rb6 {[%emt 0:00:00]} Ke7 {[%emt 0:00:30]} 41. Rf3 {[%emt 0:24:09]} Rh5 {[%emt 0:05:10]} 42. Ke4 {[%emt 0:03:29]} Rd5 {[%emt 0:00:49]} 43. Rd3 {[%emt 0:00:34]} Rd8 {[%emt 0:00:55]} 44. Ra6 {[%emt 0:00:38]} Kd7 {[%emt 0:01:02]} 45. Rda3 {[%emt 0:01:23]} Ke7 {[%emt 0:01:49]} 46. Rb6 {[%emt 0:00:00]} f5+ {[%emt 0:00:00]} 47. Ke3 {[%emt 0:00:00]} g5 {[%emt 0:00:00]} 48. fxg5 {[%emt 0:00:00]} hxg5 {[%emt 0:00:00]} 49. Rba6 {[%emt 0:00:00]} Rh8 {[%emt 0:00:00]} 50. Ke2 {[%emt 0:00:00]} Rh4 {[%emt 0:00:00]} 51. Rd3 {[%emt 0:00:00]} Kf6 {[%emt 0:00:00]} 52. Kf1 {[%emt 0:00:00]} Rd7 {[%emt 0:00:00]} 53. Rxc6 {[%emt 0:00:00]} Rdxd4 {[%emt 0:00:00]} 54. Re3 {[%emt 0:00:00]} Rhe4 {[%emt 0:00:00]} 55. Rc3 {[%emt 0:00:00]} Rxb4 {[%emt 0:00:00]} 56. Rb6 {[%emt 0:00:00]} Kg6 {[%emt 0:00:00]} 57. c6 {[%emt 0:00:00]} Rbc4 {[%emt 0:00:00]} 58. Rxc4 {[%emt 0:00:00]} Rxc4 {[%emt 0:00:00]} 59. c7 {[%emt 0:00:00]} Kf6 {[%emt 0:00:00]} 60. Rxb5 {[%emt 0:00:00]} Rxc7 {[%emt 0:00:00]} 61. Kg2 {[%emt 0:00:00]} Rc4 {[%emt 0:00:00]} 62. Ra5 {[%emt 0:00:00]} Re4 {[%emt 0:05:30]} 63. Rb5 {[%emt 0:00:00]} Re5 {[%emt 0:00:00]} 64. Rb8 {[%emt 0:00:00]} Ra5 {[%emt 0:00:00]} 65. Rb6 {[%emt 0:00:00]} Ke5 {[%emt 0:00:00]} 66. Rb3 {[%emt 0:00:00]} Rd5 {[%emt 0:07:30]} 67. Ra3 {[%emt 0:00:00]} f4 {[%emt 0:00:00]} 68. Rb3 {[%emt 0:00:00]} Kf5 {[%emt 0:00:00]} 69. Rb8 {[%emt 0:00:00]} e5 {[%emt 0:00:00]} 70. Rf8+ {[%emt 0:00:00]} Ke6 {[%emt 0:00:00]} 71. Re8+ {[%emt 0:01:22]} Kf7 {[%emt 0:00:00]} 72. Ra8 {[%emt 0:00:08]} e4 {[%emt 0:00:00]} 73. Ra7+ {[%emt 0:01:22]} Kf6 {[%emt 0:00:00]} 74. Ra6+ {[%emt 0:00:03]} Ke5 {[%emt 0:00:00]} 75. Ra4 {[%emt 0:00:42]} Rd2 {[%emt 0:00:00]} 76. Ra5+ {[%emt 0:01:10]} Kf6 {[%emt 0:00:00]} 77. Ra6+ {[%emt 0:00:26]} Kf5 {[%emt 0:00:00]} 78. Ra5+ {[%emt 0:00:02]} Kg6 {[%emt 0:00:00]} 79. Kf1 {[%emt 0:00:19]} f3 {[%emt 0:00:00]} 80. Ke1 {[%emt 0:00:24]} Re2+ {[%emt 0:00:00]} 81. Kf1 {[%emt 0:00:04]} Kh5 {[%emt 0:00:00]} 82. Ra8 {[%emt 0:00:04]} Rb2 {[%emt 0:00:00]} 83. Rh8+ {[%emt 0:00:24]} Kg6 {[%emt 0:08:30]} 84. Ke1 {[%emt 0:00:12]} Re2+ {[%emt 0:00:00]} 85. Kf1 {[%emt 0:00:00]} Rd2 {[%emt 0:00:00]} 86. Ke1 {[%emt 0:00:00]} Rd6 {[%emt 0:00:00]} 87. Rf8 {[%emt 0:00:00]} Rd7 {[%emt 0:00:00]} 88. Re8 {[%emt 0:00:00]} Kf5 {[%emt 0:00:00]} 89. Rf8+ {[%emt 0:00:00]} Ke6 {[%emt 0:03:00]} 90. Re8+ {[%emt 0:00:00]} Re7 {[%emt 0:00:00]} 91. Rg8 {[%emt 0:00:00]} Kf6 {[%emt 0:00:00]} 92. Rf8+ {[%emt 0:00:03]} Rf7 {[%emt 0:00:00]} 93. Re8 {[%emt 0:03:27]} Kf5 {[%emt 0:02:00]} 94. Kd2 {[%emt 0:00:00]} Kf4 {[%emt 0:02:30]} 95. Ke1 {[%emt 0:00:00]} Rh7 {[%emt 0:00:00]} 96. Rf8+ {[%emt 0:00:00]} Ke5 {[%emt 0:00:00]} 97. Re8+ {[%emt 0:00:00]} Kf5 {[%emt 0:00:00]} 98. Rf8+ {[%emt 0:00:30]} Kg6 {[%emt 0:00:00]} 99. Re8 {[%emt 0:00:00]} Rxh3 {[%emt 0:00:00]} 100. Rxe4 {[%emt 0:00:00]} Kf5 {[%emt 0:00:00]} 101. Ra4 {[%emt 0:00:00]} Rh4 {[%emt 0:00:00]} 102. Ra8 {[%emt 0:01:00]} Re4+ {[%emt 0:04:00]} 103. Kf1 {[%emt 0:00:30]} Kg4 {[%emt 0:00:00]} 104. Rh8 {[%emt 0:00:00]} Rb4 {[%emt 0:00:00]} 105. Ke1 {[%emt 0:00:00]} Rb1+ {[%emt 0:00:00]} 106. Kd2 {[%emt 0:00:00]} Rb2+ {[%emt 0:00:00]} 107. Ke1 {[%emt 0:00:00]} Rb1+ {[%emt 0:00:00]} 108. Kd2 {[%emt 0:00:00]} Rf1 {[%emt 0:00:00]} 109. Rh2 {[%emt 0:00:00]} Kf4 {[%emt 0:00:00]} 110. Kd3 {[%emt 0:00:00]} Rd1+ {[%emt 0:08:00]} 111. Kc2 {[%emt 0:00:00]} 0-1

[Event "Niedersachsen-ch A 2024"]
[Site "Verden Aller"]
[Date "2024.01.05"]
[Round "4.10"]
[White "Stein, Luis"]
[Black "Witthaus, Joerg"]
[Result "1/2-1/2"]
[ECO "C00"]
[WhiteElo "1762"]
[BlackElo "2029"]
[Annotator "NA RC"]
[PlyCount "45"]
[EventDate "2024.01.01"]
[EventType "swiss"]
[EventCountry "GER"]
[SourceTitle "playchess.com"]
[Source "ChessBase"]
[SourceQuality "1"]
[TimeControl "40/5400+30:1800+30"]

1. e4 {[%emt 1:31:00]} e6 {[%emt 0:00:13]} 2. c4 {[%emt 0:00:30]} d5 {[%emt 0:00:10]} 3. cxd5 {[%emt 0:00:30]} exd5 {[%emt 0:00:05]} 4. exd5 {[%emt 0:00:30]} Nf6 {[%emt 0:01:19]} 5. Bb5+ Nbd7 {[%emt 1:31:13]} 6. Nc3 {[%emt 0:01:00]} Be7 {[%emt 0:00:30]} 7. d4 {[%emt 0:00:30]} O-O {[%emt 0:00:30]} 8. Nge2 {[%emt 0:00:30]} Nb6 {[%emt 0:00:30]} 9. O-O {[%emt 0:00:30]} Nbxd5 {[%emt 0:00:30]} 10. Ng3 {[%emt 0:00:30]} c6 {[%emt 0:00:30]} 11. Bd3 {[%emt 0:00:30]} Be6 {[%emt 0:00:30]} 12. Re1 {[%emt 0:00:30]} Bb4 {[%emt 0:00:30]} 13. Qc2 {[%emt 0:00:30]} h6 {[%emt 0:00:30]} 14. Bd2 {[%emt 0:00:30]} Bd6 {[%emt 0:00:30]} 15. a3 {[%emt 0:00:00]} Qc7 {[%emt 0:00:30]} 16. Nce4 {[%emt 0:01:00]} Bf4 {[%emt 0:00:30]} 17. Bc4 {[%emt 0:00:00]} Nxe4 {[%emt 0:00:00]} 18. Bxf4 {[%emt 0:00:00]} Nxf4 {[%emt 0:00:00]} 19. Rxe4 {[%emt 0:01:30]} Bxc4 {[%emt 0:00:00]} 20. Qxc4 {[%emt 0:00:00]} Ng6 {[%emt 0:00:00]} 21. Rae1 {[%emt 0:00:00]} Qd7 {[%emt 0:00:00]} 22. Qe2 {[%emt 0:00:00]} Rfd8 {[%emt 0:00:00]} 23. Qf3 {[%emt 0:00:00]} 1/2-1/2

[Event "Niedersachsen-ch A 2024"]
[Site "Verden Aller"]
[Date "2024.01.05"]
[Round "4.11"]
[White "Trunz, Michelle"]
[Black "Sickmann, Lisa"]
[Result "1/2-1/2"]
[ECO "D61"]
[WhiteElo "2023"]
[BlackElo "1961"]
[Annotator "NA"]
[PlyCount "85"]
[EventDate "2024.01.01"]
[EventType "swiss"]
[EventCountry "GER"]
[SourceTitle "playchess.com"]
[Source "ChessBase"]
[SourceQuality "1"]
[TimeControl "40/5400+30:1800+30"]

1. d4 {[%emt 0:00:09]} d5 {[%emt 0:00:04]} 2. c4 {[%emt 0:00:13]} e6 {[%emt 0:00:05]} 3. Nc3 {[%emt 0:00:04]} Be7 {[%emt 0:00:04]} 4. Nf3 {[%emt 0:00:09]} Nf6 {[%emt 0:00:06]} 5. Bg5 {[%emt 0:00:07]} O-O {[%emt 0:00:06]} 6. e3 {[%emt 0:00:05]} Nbd7 {[%emt 0:00:12]} 7. Qc2 {[%emt 0:00:54]} c6 {[%emt 0:00:09]} 8. Bd3 {[%emt 0:00:11]} Re8 {[%emt 0:00:17]} 9. O-O {[%emt 0:00:39]} Nf8 {[%emt 0:01:07]} 10. Rad1 {[%emt 0:09:07]} Ng6 {[%emt 0:05:13]} 11. Ne5 {[%emt 0:03:25]} Bd6 {[%emt 0:19:45]} 12. f4 {[%emt 0:03:32]} Qc7 {[%emt 0:06:51]} 13. Rf3 {[%emt 0:13:42]} Nd7 {[%emt 0:05:43]} 14. Nxg6 {[%emt 0:03:51]} hxg6 {[%emt 0:09:13]} 15. Bxg6 {[%emt 0:09:17]} fxg6 {[%emt 0:05:30]} 16. Qxg6 {[%emt 0:00:15]} Rf8 {[%emt 0:00:23]} 17. c5 {[%emt 0:08:40]} Nxc5 {[%emt 0:01:41]} 18. dxc5 {[%emt 0:00:07]} Bxc5 {[%emt 0:00:08]} 19. Rh3 {[%emt 0:01:41]} Be7 {[%emt 0:10:04]} 20. Rf1 {[%emt 0:08:58]} Rf5 {[%emt 0:07:09]} 21. Qh7+ {[%emt 0:04:09]} Kf8 {[%emt 0:02:48]} 22. g4 {[%emt 0:13:16]} Bxg5 {[%emt 0:01:04]} 23. gxf5 {[%emt 0:00:36]} Bf6 {[%emt 0:00:13]} 24. Qg6 {[%emt 0:02:56]} exf5 {[%emt 0:01:53]} 25. Rh8+ {[%emt 0:02:39]} Ke7 {[%emt 0:00:05]} 26. Qe8+ {[%emt 0:03:10]} Kd6 {[%emt 0:00:07]} 27. Qf8+ {[%emt 0:06:03]} Qe7 {[%emt 0:00:18]} 28. Qxe7+ {[%emt 0:00:32]} Kxe7 {[%emt 0:00:16]} 29. Rc1 {[%emt 0:02:16]} Kd6 {[%emt 0:01:03]} 30. b4 {[%emt 0:01:08]} b6 {[%emt 0:01:00]} 31. Ne2 {[%emt 0:01:12]} Bb7 {[%emt 0:00:43]} 32. Rh7 {[%emt 0:00:53]} Bc8 {[%emt 0:01:43]} 33. Rh8 {[%emt 0:00:55]} Bb7 {[%emt 0:00:09]} 34. Rh5 {[%emt 0:00:37]} Re8 {[%emt 0:00:37]} 35. Ng3 {[%emt 0:01:06]} Bc8 {[%emt 0:01:08]} 36. Kf2 {[%emt 0:00:37]} d4 {[%emt 0:01:32]} 37. Rd1 {[%emt 0:00:52]} Rxe3 {[%emt 0:00:49]} 38. Nxf5+ {[%emt 0:00:22]} Bxf5 {[%emt 0:00:07]} 39. Rxf5 {[%emt 0:00:03]} Rh3 {[%emt 0:00:50]} 40. Kg2 {[%emt 0:00:43]} Rh8 {[%emt 0:00:23]} 41. Rxf6+ {[%emt 0:07:23]} gxf6 {[%emt 0:00:11]} 42. Rxd4+ {[%emt 0:00:03]} Ke6 {[%emt 0:00:40]} 43. Kg3 {[%emt 0:02:38]} 1/2-1/2

[Event "Niedersachsen-ch A 2024"]
[Site "Verden Aller"]
[Date "2024.01.05"]
[Round "4.12"]
[White "Hoellmann, Ludger"]
[Black "Kelemen, Alexander"]
[Result "1-0"]
[ECO "E05"]
[WhiteElo "2015"]
[BlackElo "1817"]
[Annotator "NA"]
[PlyCount "91"]
[EventDate "2024.01.01"]
[EventType "swiss"]
[EventCountry "GER"]
[SourceTitle "playchess.com"]
[Source "ChessBase"]
[SourceQuality "1"]
[TimeControl "40/5400+30:1800+30"]

1. d4 {[%emt 0:00:02]} Nf6 {[%emt 0:01:14]} 2. Nf3 {[%emt 0:00:23]} d5 {[%emt 0:00:11]} 3. g3 {[%emt 0:00:09]} e6 {[%emt 0:05:07]} 4. Bg2 {[%emt 0:00:16]} Be7 {[%emt 0:00:03]} 5. O-O {[%emt 0:00:18]} O-O {[%emt 0:00:04]} 6. c4 {[%emt 0:00:13]} dxc4 {[%emt 0:00:04]} 7. Qc2 {[%emt 0:00:18]} a6 {[%emt 0:00:09]} 8. Qxc4 {[%emt 0:00:07]} b5 {[%emt 0:00:39]} 9. Qc2 {[%emt 0:00:05]} Bb7 {[%emt 0:00:12]} 10. Bg5 {[%emt 0:00:03]} Nbd7 {[%emt 0:03:09]} 11. Bxf6 {[%emt 0:00:49]} Nxf6 {[%emt 0:01:39]} 12. Nbd2 {[%emt 0:00:19]} Rc8 {[%emt 0:05:27]} 13. Nb3 {[%emt 0:00:38]} Be4 {[%emt 0:09:16]} 14. Qc1 {[%emt 0:00:27]} Qd5 {[%emt 0:17:31]} 15. Rd1 {[%emt 0:05:03]} Qb7 {[%emt 0:03:12]} 16. Qe3 {[%emt 0:09:11]} Bd5 {[%emt 0:08:54]} 17. a3 {[%emt 0:17:23]} Nd7 {[%emt 0:05:50]} 18. Na5 {[%emt 0:00:51]} Qb6 {[%emt 0:01:09]} 19. b4 {[%emt 0:00:16]} c5 {[%emt 0:02:17]} 20. dxc5 {[%emt 0:16:22]} Bxc5 {[%emt 0:00:46]} 21. Nd4 {[%emt 0:03:17]} Nf6 {[%emt 0:10:16]} 22. bxc5 {[%emt 0:14:47]} Qxa5 {[%emt 0:00:07]} 23. Nf5 {[%emt 0:00:31]} exf5 {[%emt 0:11:19]} 24. Bxd5 {[%emt 0:00:07]} Rfe8 {[%emt 0:00:09]} 25. Qb3 {[%emt 0:09:03]} Qc7 {[%emt 0:01:48]} 26. e3 {[%emt 0:04:21]} g6 {[%emt 0:06:05]} 27. Rac1 {[%emt 0:01:24]} Red8 {[%emt 0:01:03]} 28. Rd4 {[%emt 0:04:05]} Nxd5 {[%emt 0:04:16]} 29. Rxd5 {[%emt 0:00:07]} Rxd5 {[%emt 0:00:03]} 30. Qxd5 {[%emt 0:00:10]} Rd8 {[%emt 0:01:25]} 31. Qf3 {[%emt 0:00:30]} Kg7 {[%emt 0:01:16]} 32. h4 {[%emt 0:06:01]} Rd3 {[%emt 0:00:24]} 33. Qe2 {[%emt 0:00:47]} Rd5 {[%emt 0:00:59]} 34. c6 {[%emt 0:00:58]} Rd6 {[%emt 0:00:22]} 35. Qb2+ {[%emt 0:02:48]} Kg8 {[%emt 0:00:23]} 36. Qc3 {[%emt 0:00:55]} h5 {[%emt 0:00:11]} 37. Kg2 {[%emt 0:00:58]} Rd8 {[%emt 0:01:21]} 38. Qf6 {[%emt 0:01:15]} Rc8 {[%emt 0:00:22]} 39. Qd4 {[%emt 0:01:19]} Kf8 {[%emt 0:00:43]} 40. Rc5 {[%emt 0:01:57]} Rd8 {[%emt 0:00:27]} 41. Qc3 {[%emt 0:03:16]} Kg8 {[%emt 0:03:39]} 42. Qb4 {[%emt 0:06:14]} Rd6 {[%emt 0:04:15]} 43. Qf4 {[%emt 0:00:39]} Kh7 {[%emt 0:00:34]} 44. Qe5 {[%emt 0:02:14]} Kg8 {[%emt 0:00:28]} 45. Kh2 {[%emt 0:00:35]} Kh7 {[%emt 0:00:27]} 46. Rc2 {[%emt 0:01:24]} 1-0

[Event "Niedersachsen-ch A 2024"]
[Site "Verden Aller"]
[Date "2024.01.05"]
[Round "4.13"]
[White "Koch, Yannick"]
[Black "Ahlbrecht, Malte"]
[Result "0-1"]
[ECO "E32"]
[WhiteElo "1981"]
[BlackElo "1727"]
[Annotator "NA"]
[PlyCount "76"]
[EventDate "2024.01.01"]
[EventType "swiss"]
[EventCountry "GER"]
[SourceTitle "playchess.com"]
[Source "ChessBase"]
[SourceQuality "1"]
[TimeControl "40/5400+30:1800+30"]

1. d4 {[%emt 0:00:16]} Nf6 {[%emt 0:00:01]} 2. c4 {[%emt 0:00:32]} e6 {[%emt 0:00:04]} 3. Nc3 {[%emt 0:00:52]} Bb4 {[%emt 0:01:22]} 4. Qc2 {[%emt 0:00:40]} O-O {[%emt 0:00:10]} 5. Nf3 {[%emt 0:00:39]} d5 {[%emt 0:00:30]} 6. cxd5 {[%emt 0:00:33]} exd5 {[%emt 0:00:17]} 7. Bf4 {[%emt 0:00:33]} c6 {[%emt 0:01:17]} 8. e3 {[%emt 0:02:01]} Re8 {[%emt 0:00:45]} 9. Bd3 {[%emt 0:00:46]} Ne4 {[%emt 0:02:00]} 10. O-O {[%emt 0:01:27]} f5 {[%emt 0:01:09]} 11. a3 {[%emt 0:22:27]} Bd6 {[%emt 0:04:11]} 12. Be5 {[%emt 0:01:56]} Bxe5 {[%emt 0:22:49]} 13. Nxe5 {[%emt 0:00:35]} Nd7 {[%emt 0:00:11]} 14. f4 {[%emt 0:02:01]} h5 {[%emt 0:25:40]} 15. Qe2 {[%emt 0:17:01]} Ndf6 {[%emt 0:01:22]} 16. Rac1 {[%emt 0:06:06]} a5 {[%emt 0:14:07]} 17. Bxe4 {[%emt 0:01:50]} dxe4 {[%emt 0:05:11]} 18. Na4 {[%emt 0:02:09]} Qd6 {[%emt 0:06:50]} 19. Nc5 {[%emt 0:00:48]} b6 {[%emt 0:01:51]} 20. Na4 {[%emt 0:00:41]} Ba6 {[%emt 0:01:41]} 21. Nc4 {[%emt 0:04:25]} Qb8 {[%emt 0:01:20]} 22. Naxb6 {[%emt 0:01:29]} Qxb6 {[%emt 0:01:19]} 23. Nxb6 {[%emt 0:04:49]} Bxe2 {[%emt 0:00:04]} 24. Rfe1 {[%emt 0:00:10]} Rab8 {[%emt 0:01:18]} 25. Rxc6 {[%emt 0:00:28]} Bb5 {[%emt 0:01:19]} 26. Rd6 {[%emt 0:00:06]} Rbd8 {[%emt 0:00:53]} 27. Rxd8 {[%emt 0:28:40]} Rxd8 28. Rc1 {[%emt 0:00:00]} Rb8 {[%emt 0:01:36]} 29. Nc8 {[%emt 0:00:00]} Bd7 {[%emt 0:01:17]} 30. Nd6 {[%emt 0:00:00]} Rxb2 {[%emt 0:00:41]} 31. Rc5 {[%emt 0:00:00]} Ng4 {[%emt 0:01:47]} 32. g3 {[%emt 0:00:00]} Rb1+ {[%emt 0:01:25]} 33. Kg2 {[%emt 0:00:00]} Nxe3+ {[%emt 0:00:31]} 34. Kf2 {[%emt 0:00:00]} Ng4+ {[%emt 0:00:39]} 35. Ke2 {[%emt 0:00:00]} Rb2+ {[%emt 0:00:36]} 36. Ke1 {[%emt 0:00:00]} Nxh2 {[%emt 0:00:26]} 37. Rxa5 {[%emt 0:00:00]} Nf3+ {[%emt 0:00:12]} 38. Kf1 {[%emt 0:00:00]} e3 {[%emt 0:00:57]} 0-1

[Event "Niedersachsen-ch A 2024"]
[Site "Verden Aller"]
[Date "2024.01.05"]
[Round "4.14"]
[White "Ay, Furkan"]
[Black "Bulygin, Anton"]
[Result "1/2-1/2"]
[ECO "C41"]
[WhiteElo "1544"]
[BlackElo "2040"]
[Annotator "NA RC"]
[PlyCount "80"]
[EventDate "2024.01.01"]
[EventType "swiss"]
[EventCountry "GER"]
[SourceTitle "playchess.com"]
[Source "ChessBase"]
[SourceQuality "1"]
[TimeControl "40/5400+30:1800+30"]

1. e4 {[%emt 0:00:09]} d6 {[%emt 0:00:29]} 2. d4 {[%emt 0:00:20]} Nf6 {[%emt 0:00:23]} 3. Nc3 {[%emt 0:00:08]} Nbd7 {[%emt 0:00:12]} 4. Nf3 {[%emt 0:00:42]} e5 {[%emt 0:00:17]} 5. Bc4 {[%emt 0:01:47]} Be7 {[%emt 0:00:43]} 6. Bxf7+ {[%emt 0:08:27]} Kxf7 {[%emt 0:04:37]} 7. Ng5+ {[%emt 0:00:08]} Kg8 {[%emt 0:00:07]} 8. Ne6 {[%emt 0:00:10]} Qe8 {[%emt 0:00:09]} 9. Nxc7 {[%emt 0:00:14]} Qd8 {[%emt 0:00:08]} 10. Nxa8 {[%emt 0:00:28]} b6 {[%emt 0:01:07]} 11. dxe5 {[%emt 0:06:19]} dxe5 {[%emt 0:06:44]} 12. Nd5 {[%emt 0:05:49]} Bd6 {[%emt 0:01:52]} 13. Bg5 {[%emt 0:06:16]} Bb7 {[%emt 0:01:06]} 14. Naxb6 {[%emt 0:06:50]} axb6 {[%emt 0:00:27]} 15. c4 {[%emt 0:00:55]} h6 {[%emt 0:02:52]} 16. Nxf6+ {[%emt 0:04:08]} Nxf6 {[%emt 0:00:14]} 17. Bxf6 {[%emt 0:00:23]} Qxf6 {[%emt 0:00:09]} 18. Qb3 {[%emt 0:07:22]} Bc5 {[%emt 0:01:21]} 19. O-O-O {[%emt 0:02:22]} Kh7 {[%emt 0:00:30]} 20. f3 {[%emt 0:07:20]} Rd8 {[%emt 0:05:11]} 21. g3 {[%emt 0:05:51]} Rxd1+ {[%emt 0:02:20]} 22. Rxd1 {[%emt 0:00:10]} Qe6 {[%emt 0:00:17]} 23. Qd3 {[%emt 0:03:55]} Bc6 {[%emt 0:05:19]} 24. f4 {[%emt 0:01:56]} exf4 {[%emt 0:03:08]} 25. e5+ {[%emt 0:00:14]} Qg6 {[%emt 0:00:07]} 26. Qxg6+ {[%emt 0:01:13]} Kxg6 {[%emt 0:00:09]} 27. gxf4 {[%emt 0:04:39]} Kf5 {[%emt 0:00:09]} 28. Re1 {[%emt 0:02:24]} Kxf4 {[%emt 0:05:45]} 29. a3 {[%emt 0:01:09]} Kf5 {[%emt 0:03:03]} 30. e6 {[%emt 0:02:22]} Be7 {[%emt 0:00:11]} 31. Kd2 {[%emt 0:01:33]} g5 {[%emt 0:00:49]} 32. b4 {[%emt 0:01:14]} b5 {[%emt 0:01:04]} 33. Kd3 {[%emt 0:00:42]} h5 {[%emt 0:00:30]} 34. Kd4 {[%emt 0:01:00]} bxc4 {[%emt 0:01:04]} 35. b5 {[%emt 0:01:51]} Bb7 {[%emt 0:00:50]} 36. Kxc4 {[%emt 0:01:30]} Bc8 {[%emt 0:00:10]} 37. Kd5 {[%emt 0:01:13]} Bb7+ {[%emt 0:01:18]} 38. Kc4 {[%emt 0:00:07]} Bc8 {[%emt 0:00:10]} 39. Kd5 {[%emt 0:01:31]} Bb7+ {[%emt 0:00:09]} 40. Kc4 {[%emt 0:00:08]} Bc8 {[%emt 0:00:08]} 1/2-1/2